fUSD/lending_fUSD_20250308
["ID","MTS","AMOUNT","RATE_DAILY","PERIOD"]
[355674404,1741451467563,-284.0,0.0001,2]
[355674405,1741451467572,-284.0,0.0001,2]
[355674406,1741451467581,-284.0,0.0001,2]
[355674407,1741451467590,-284.0,0.0001,2]
[355674408,1741451467600,-284.0,0.0001,2]
[355674409,1741451467609,-284.0,0.0001,2]
[355674410,1741451467619,-284.0,0.0001,2]
[355674411,1741451467628,-284.0,0.0001,2]
[355674412,1741451467640,-284.0,0.0001,2]
[355674413,1741451467649,-284.0,0.0001,2]
[355674414,1741451467658,-284.0,0.0001,2]
[355674415,1741451467671,-284.0,0.0001,2]
[355674416,1741451467680,-284.0,0.0001,2]
[355674417,1741451467690,-284.0,0.0001,2]
[355674418,1741451467699,-284.0,0.0001,2]
[355674419,1741451467709,-284.0,0.0001,2]
[355674420,1741451467718,-284.0,0.0001,2]
[355674421,1741451467727,-284.0,0.0001,2]
[355674422,1741451467736,-284.0,0.0001,2]
[355674423,1741451467747,-342513.69814643,0.0001,2]
[355674424,1741451467777,-520.0,0.0001,2]
[355674425,1741451467802,-546.55562251,0.0001,2]
[355674426,1741451467898,-6450.0,0.0001,2]
[355674427,1741451468510,-4000.0,8.218e-05,2]
[355674428,1741451470136,-4000.0,8.218e-05,2]
[355674432,1741452031199,165.62,7.898e-05,2]
[355674433,1741452034564,160.48,7.898e-05,2]
[355674441,1741452426710,4700.0,8e-05,2]
[355674451,1741452468346,600.0,8e-05,2]
[355674496,1741452631494,-470.8121,8.119e-05,2]
[355674498,1741452631505,-150.0,8.141e-05,2]
[355674500,1741452631515,-150.0,8.192e-05,2]
[355674502,1741452631524,-271.2,8.208e-05,2]
[355674504,1741452631534,-150.0,8.217e-05,2]
[355674506,1741452631544,-300.0,8.217e-05,2]
[355674508,1741452631554,-1467.97937724,8.218e-05,2]
[355674510,1741452631600,-840.0,8.218e-05,2]
[355674512,1741452631612,-4407.26800177,8.218e-05,2]
[355674514,1741452631623,-7817.45860906,8.218e-05,2]
[355674516,1741452631632,-6246.56036494,8.218e-05,2]
[355674519,1741452631653,-320.29041264,8.218e-05,2]
[355674521,1741452631664,-103746.84353456,8.218e-05,2]
[355674523,1741452631673,-500.0,8.218e-05,2]
[355674525,1741452631682,-500.0,8.218e-05,2]
[355674527,1741452631691,-500.0,8.218e-05,2]
[355674529,1741452631700,-518.95266798,8.218e-05,2]
[355674531,1741452631710,-500.0,8.218e-05,2]
[355674533,1741452631719,-500.0,8.218e-05,2]
[355674535,1741452631728,-278.575238,8.219e-05,2]
[355674536,1741452631737,-414.87639,8.219e-05,2]
[355674538,1741452631746,-500.0,8.219e-05,2]
[355674539,1741452631756,-500.0,8.219e-05,2]
[355674540,1741452631770,-500.0,8.219e-05,2]
[355674541,1741452631779,-500.0,8.219e-05,2]
[355674542,1741452631788,-500.0,8.219e-05,2]
[355674543,1741452631798,-500.0,8.219e-05,2]
[355674544,1741452631808,-500.0,8.219e-05,2]
[355674545,1741452631817,-500.0,8.219e-05,2]
[355674546,1741452631827,-500.0,8.219e-05,2]
[355674547,1741452631838,-500.0,8.219e-05,2]
[355674548,1741452631847,-500.0,8.219e-05,2]
[355674549,1741452631856,-500.0,8.219e-05,2]
[355674550,1741452631865,-500.0,8.219e-05,2]
[355674551,1741452631875,-500.0,8.219e-05,2]
[355674552,1741452631884,-500.0,8.219e-05,2]
[355674553,1741452631897,-500.0,8.219e-05,2]
[355674554,1741452631907,-500.0,8.219e-05,2]
[355674555,1741452631916,-500.0,8.219e-05,2]
[355674556,1741452631925,-500.0,8.219e-05,2]
[355674557,1741452631935,-500.0,8.219e-05,2]
[355674558,1741452631945,-500.0,8.219e-05,2]
[355674559,1741452631954,-500.0,8.219e-05,2]
[355674560,1741452631963,-500.0,8.219e-05,2]
[355674561,1741452631974,-500.0,8.219e-05,2]
[355674562,1741452631983,-500.0,8.219e-05,2]
[355674563,1741452631994,-500.0,8.219e-05,2]
[355674564,1741452632005,-500.0,8.219e-05,2]
[355674565,1741452632015,-544.32,8.219e-05,2]
[355674566,1741452632025,-500.0,8.219e-05,2]
[355674567,1741452632035,-500.0,8.219e-05,2]
[355674568,1741452632044,-287.30458485,8.219e-05,2]
[355674569,1741452632069,-103.57706279,8.219e-05,2]
[355674570,1741452632078,-315.64812157,8.219e-05,2]
[355674571,1741452632090,-184.35187843,8.219e-05,2]
[355674572,1741452632100,-500.0,8.219e-05,2]
[355674573,1741452632111,-500.0,8.219e-05,2]
[355674574,1741452632120,-500.0,8.219e-05,2]
[355674575,1741452632131,-500.0,8.219e-05,2]
[355674576,1741452632143,-500.0,8.219e-05,2]
[355674577,1741452632153,-500.0,8.219e-05,2]
[355674578,1741452632162,-500.0,8.219e-05,2]
[355674579,1741452632172,-500.0,8.219e-05,2]
[355674580,1741452632181,-500.0,8.219e-05,2]
[355674582,1741452632191,-500.0,8.219e-05,2]
[355674584,1741452632201,-500.0,8.219e-05,2]
[355674586,1741452632212,-500.0,8.219e-05,2]
[355674588,1741452632221,-500.0,8.219e-05,2]
[355674590,1741452632230,-500.0,8.219e-05,2]
[355674592,1741452632240,-500.0,8.219e-05,2]
[355674594,1741452632250,-500.0,8.219e-05,2]
[355674596,1741452632260,-500.0,8.219e-05,2]
[355674597,1741452632269,-500.0,8.219e-05,2]
[355674598,1741452632278,-500.0,8.219e-05,2]
[355674599,1741452632288,-500.0,8.219e-05,2]
[355674600,1741452632298,-500.0,8.219e-05,2]
[355674601,1741452632307,-500.0,8.219e-05,2]
[355674602,1741452632317,-500.0,8.219e-05,2]
[355674603,1741452632326,-500.0,8.219e-05,2]
[355674604,1741452632336,-500.0,8.219e-05,2]
[355674605,1741452632346,-500.0,8.219e-05,2]
[355674606,1741452632355,-500.0,8.219e-05,2]
[355674607,1741452632365,-572.01,8.219e-05,2]
[355674608,1741452632374,-500.0,8.219e-05,2]
[355674609,1741452632383,-382.44192189,8.219e-05,2]
[355674610,1741452632393,-500.0,8.219e-05,2]
[355674611,1741452632402,-653.42,8.219e-05,2]
[355674612,1741452632412,-500.0,8.219e-05,2]
[355674613,1741452632422,-500.0,8.219e-05,2]
[355674614,1741452632431,-26.03996248,8.219e-05,2]
[355674617,1741452637393,-473.96003752,8.219e-05,2]
[355674619,1741452637403,-525.98,8.219e-05,2]
[355674620,1741452637414,-500.0,8.219e-05,2]
[355674621,1741452637424,-579.96,8.219e-05,2]
[355674622,1741452637433,-500.0,8.219e-05,2]
[355674623,1741452637442,-525.57,8.219e-05,2]
[355674624,1741452637453,-500.0,8.219e-05,2]
[355674625,1741452637462,-709.73,8.219e-05,2]
[355674626,1741452637471,-500.0,8.219e-05,2]
[355674627,1741452637481,-366.08838248,8.219e-05,2]
[355674628,1741452637499,-133.91161752,8.219e-05,2]
[355674629,1741452637509,-500.0,8.219e-05,2]
[355674630,1741452637519,-591.01,8.219e-05,2]
[355674631,1741452637529,-500.0,8.219e-05,2]
[355674632,1741452637539,-500.0,8.219e-05,2]
[355674633,1741452637549,-320.58377386,8.219e-05,2]
[355674634,1741452637712,-423.01622614,8.219e-05,2]
[355674635,1741452637722,-487.0337525,8.219e-05,2]
[355674809,1741452639601,-12.9662475,8.219e-05,2]
[355674811,1741452639610,-500.0,8.219e-05,2]
[355674813,1741452639620,-500.0,8.219e-05,2]
[355674815,1741452639629,-500.0,8.219e-05,2]
[355674817,1741452639639,-609.03,8.219e-05,2]
[355674819,1741452639648,-612.62,8.219e-05,2]
[355674821,1741452639657,-500.0,8.219e-05,2]
[355674823,1741452639668,-500.0,8.219e-05,2]
[355674825,1741452639678,-500.0,8.219e-05,2]
[355674827,1741452639687,-500.0,8.219e-05,2]
[355674829,1741452639696,-500.0,8.219e-05,2]
[355674831,1741452639706,-609.32,8.219e-05,2]
[355674833,1741452639715,-851.29,8.219e-05,2]
[355674835,1741452639724,-500.0,8.219e-05,2]
[355674837,1741452639734,-1077.93,8.219e-05,2]
[355674839,1741452639743,-691.53,8.219e-05,2]
[355674840,1741452639753,-708.66,8.219e-05,2]
[355674842,1741452639762,-500.0,8.219e-05,2]
[355674844,1741452639771,-210.73337992,8.219e-05,2]
[355674847,1741452639783,-289.26662008,8.219e-05,2]
[355674849,1741452639792,-500.0,8.219e-05,2]
[355674851,1741452639801,-500.0,8.219e-05,2]
[355674853,1741452639810,-859.23,8.219e-05,2]
[355674854,1741452639819,-500.0,8.219e-05,2]
[355674856,1741452639828,-500.0,8.219e-05,2]
[355674857,1741452639838,-500.0,8.219e-05,2]
[355674858,1741452639847,-500.0,8.219e-05,2]
[355674859,1741452639857,-500.0,8.219e-05,2]
[355674860,1741452639866,-653.20415538,8.219e-05,2]
[355674861,1741452639878,-35.51584462,8.219e-05,2]
[355674862,1741452639887,-460.59915538,8.219e-05,2]
[355674863,1741452639898,-8.93826201,8.219e-05,2]
[355674864,1741452639907,-288.76673799,8.219e-05,2]
[355674865,1741452639919,-211.23326201,8.219e-05,2]
[355674867,1741452639928,-844.82,8.219e-05,2]
[355674869,1741452639938,-325.67749981,8.219e-05,2]
[355674874,1741452639982,-216.16250019,8.219e-05,2]
[355674876,1741452639991,-654.03,8.219e-05,2]
[355674879,1741452640002,-500.0,8.219e-05,2]
[355674881,1741452640011,-712.63,8.219e-05,2]
[355674883,1741452640021,-500.0,8.219e-05,2]
[355674885,1741452640030,-500.0,8.219e-05,2]
[355674886,1741452640039,-500.0,8.219e-05,2]
[355674888,1741452640049,-500.0,8.219e-05,2]
[355674890,1741452640060,-306.97749985,8.219e-05,2]
[355674893,1741452640080,-193.02250015,8.219e-05,2]
[355674895,1741452640089,-658.85,8.219e-05,2]
[355674897,1741452640098,-150.1536953,8.219e-05,2]
[355674899,1741452640109,-500.0,8.219e-05,2]
[355674901,1741452640118,-794.59,8.219e-05,2]
[355674903,1741452640127,-500.0,8.219e-05,2]
[355674905,1741452640137,-548.22,8.219e-05,2]
[355674907,1741452640146,-500.0,8.219e-05,2]
[355674909,1741452640156,-500.0,8.219e-05,2]
[355674912,1741452640166,-500.0,8.219e-05,2]
[355674914,1741452640175,-500.0,8.219e-05,2]
[355674915,1741452640184,-500.0,8.219e-05,2]
[355674918,1741452640194,-612.25,8.219e-05,2]
[355674919,1741452640203,-500.0,8.219e-05,2]
[355674921,1741452640212,-500.0,8.219e-05,2]
[355674923,1741452640222,-857.02,8.219e-05,2]
[355674925,1741452640232,-500.0,8.219e-05,2]
[355674927,1741452640241,-675.97,8.219e-05,2]
[355674929,1741452640251,-623.25,8.219e-05,2]
[355674931,1741452640261,-982.52,8.219e-05,2]
[355674933,1741452640270,-500.0,8.219e-05,2]
[355674935,1741452640279,-500.0,8.219e-05,2]
[355674937,1741452640288,-500.0,8.219e-05,2]
[355674939,1741452640298,-500.0,8.219e-05,2]
[355674941,1741452640307,-605.91,8.219e-05,2]
[355674943,1741452640316,-500.0,8.219e-05,2]
[355674945,1741452640325,-500.0,8.219e-05,2]
[355674947,1741452640335,-1592.66,8.219e-05,2]
[355674949,1741452640344,-710.79,8.219e-05,2]
[355674951,1741452640353,-500.0,8.219e-05,2]
[355674953,1741452640363,-500.0,8.219e-05,2]
[355674955,1741452640372,-500.0,8.219e-05,2]
[355674957,1741452640381,-557.14,8.219e-05,2]
[355674959,1741452640391,-500.0,8.219e-05,2]
[355674961,1741452640400,-500.0,8.219e-05,2]
[355674964,1741452640411,-1347.38,8.219e-05,2]
[355674965,1741452640420,-1502.89,8.219e-05,2]
[355674967,1741452640430,-1996.33,8.219e-05,2]
[355674969,1741452640439,-500.0,8.219e-05,2]
[355674971,1741452640448,-1144.05,8.219e-05,2]
[355674973,1741452640457,-500.0,8.219e-05,2]
[355674975,1741452640466,-1137.9,8.219e-05,2]
[355674977,1741452640476,-1690.8,8.219e-05,2]
[355674979,1741452640486,-1243.82,8.219e-05,2]
[355674981,1741452640495,-1174.08,8.219e-05,2]
[355674983,1741452640505,-614.72,8.219e-05,2]
[355674985,1741452640514,-500.0,8.219e-05,2]
[355674987,1741452640524,-961.42,8.219e-05,2]
[355674989,1741452640534,-500.0,8.219e-05,2]
[355674991,1741452640544,-551.38,8.219e-05,2]
[355674994,1741452640559,-1143.51,8.219e-05,2]
[355674996,1741452640568,-2931.8,8.219e-05,2]
[355674998,1741452640578,-1961.87,8.219e-05,2]
[355675000,1741452640587,-532.8,8.219e-05,2]
[355675002,1741452640597,-500.0,8.219e-05,2]
[355675004,1741452640606,-2407.62,8.219e-05,2]
[355675006,1741452640614,-1344.43,8.219e-05,2]
[355675008,1741452640623,-500.0,8.219e-05,2]
[355675010,1741452640634,-500.0,8.219e-05,2]
[355675012,1741452640643,-500.0,8.219e-05,2]
[355675014,1741452640652,-556.64,8.219e-05,2]
[355675016,1741452640662,-987.54,8.219e-05,2]
[355675018,1741452640671,-4344.27,8.219e-05,2]
[355675020,1741452640680,-954.59,8.219e-05,2]
[355675022,1741452640689,-500.0,8.219e-05,2]
[355675024,1741452640698,-500.0,8.219e-05,2]
[355675051,1741452640942,-1000.0,8.219e-05,2]
[355675054,1741452640952,-500.0,8.219e-05,2]
[355675056,1741452640962,-1350.39,8.219e-05,2]
[355675058,1741452640971,-500.0,8.219e-05,2]
[355675060,1741452640980,-2515.6,8.219e-05,2]
[355675062,1741452640990,-555.17128761,8.219e-05,2]
[355675064,1741452640999,-500.0,8.219e-05,2]
[355675065,1741452641008,-3329.08,8.219e-05,2]
[355675067,1741452641018,-618.36,8.219e-05,2]
[355675069,1741452641027,-628.44,8.219e-05,2]
[355675071,1741452641037,-500.0,8.219e-05,2]
[355675074,1741452641046,-500.0,8.219e-05,2]
[355675076,1741452641057,-500.0,8.219e-05,2]
[355675078,1741452641069,-1060.46,8.219e-05,2]
[355675080,1741452641078,-500.0,8.219e-05,2]
[355675082,1741452641087,-819.91,8.219e-05,2]
[355675084,1741452641096,-2576.22,8.219e-05,2]
[355675086,1741452641106,-1583.51,8.219e-05,2]
[355675088,1741452641116,-979.53,8.219e-05,2]
[355675089,1741452641125,-2114.02,8.219e-05,2]
[355675092,1741452641137,-934.64,8.219e-05,2]
[355675093,1741452641146,-500.0,8.219e-05,2]
[355675096,1741452641155,-662.75,8.219e-05,2]
[355675098,1741452641165,-559.44,8.219e-05,2]
[355675100,1741452641175,-1432.89,8.219e-05,2]
[355675102,1741452641185,-1602.85,8.219e-05,2]
[355675104,1741452641194,-500.0,8.219e-05,2]
[355675106,1741452641203,-1858.7,8.219e-05,2]
[355675108,1741452641213,-529.15,8.219e-05,2]
[355675110,1741452641222,-865.71,8.219e-05,2]
[355675112,1741452641232,-4246.99,8.219e-05,2]
[355675114,1741452641241,-500.0,8.219e-05,2]
[355675116,1741452641250,-1130.2,8.219e-05,2]
[355675118,1741452641260,-500.0,8.219e-05,2]
[355675120,1741452641268,-4901.03,8.219e-05,2]
[355675122,1741452641277,-911.39,8.219e-05,2]
[355675124,1741452641287,-1278.79,8.219e-05,2]
[355675126,1741452641296,-500.0,8.219e-05,2]
[355675127,1741452641305,-826.26,8.219e-05,2]
[355675129,1741452641315,-2039.71,8.219e-05,2]
[355675131,1741452641324,-500.0,8.219e-05,2]
[355675133,1741452641333,-500.0,8.219e-05,2]
[355675135,1741452641343,-500.0,8.219e-05,2]
[355675137,1741452641352,-1258.53,8.219e-05,2]
[355675139,1741452641361,-906.02,8.219e-05,2]
[355675141,1741452641370,-1220.28,8.219e-05,2]
[355675143,1741452641379,-646.83,8.219e-05,2]
[355675145,1741452641389,-215.19245348,8.219e-05,2]
[355675147,1741452641398,-1111.92,8.219e-05,2]
[355675149,1741452641407,-8508.19,8.219e-05,2]
[355675151,1741452641416,-500.0,8.219e-05,2]
[355675153,1741452641425,-1538.13,8.219e-05,2]
[355675155,1741452641435,-1284.68,8.219e-05,2]
[355675157,1741452641445,-1549.41,8.219e-05,2]
[355675159,1741452641454,-2491.1,8.219e-05,2]
[355675161,1741452641463,-500.0,8.219e-05,2]
[355675163,1741452641472,-512.48,8.219e-05,2]
[355675165,1741452641481,-1790.81,8.219e-05,2]
[355675167,1741452641491,-500.0,8.219e-05,2]
[355675169,1741452641500,-2188.52,8.219e-05,2]
[355675171,1741452641509,-871.16,8.219e-05,2]
[355675173,1741452641518,-500.0,8.219e-05,2]
[355675175,1741452641527,-4434.79,8.219e-05,2]
[355675177,1741452641536,-625.66,8.219e-05,2]
[355675179,1741452641546,-1952.32,8.219e-05,2]
[355675181,1741452641555,-1964.83,8.219e-05,2]
[355675183,1741452641564,-716.59,8.219e-05,2]
[355675185,1741452641573,-2004.94,8.219e-05,2]
[355675187,1741452641583,-500.0,8.219e-05,2]
[355675189,1741452641591,-2082.21,8.219e-05,2]
[355675191,1741452641601,-1581.72,8.219e-05,2]
[355675193,1741452641609,-1195.58,8.219e-05,2]
[355675195,1741452641618,-500.0,8.219e-05,2]
[355675197,1741452641627,-4211.53,8.219e-05,2]
[355675199,1741452641636,-533.78,8.219e-05,2]
[355675201,1741452641646,-500.0,8.219e-05,2]
[355675203,1741452641655,-913.32,8.219e-05,2]
[355675205,1741452641664,-500.0,8.219e-05,2]
[355675207,1741452641673,-3878.83,8.219e-05,2]
[355675209,1741452641682,-2355.64,8.219e-05,2]
[355675211,1741452641691,-2212.11,8.219e-05,2]
[355675213,1741452641700,-500.0,8.219e-05,2]
[355675215,1741452641709,-2117.57,8.219e-05,2]
[355675217,1741452641718,-267.64156926,8.219e-05,2]
[355675219,1741452641727,-18782.74,8.219e-05,2]
[355675221,1741452641736,-500.0,8.219e-05,2]
[355675223,1741452641745,-1673.95,8.219e-05,2]
[355675225,1741452641755,-3792.76,8.219e-05,2]
[355675227,1741452641763,-500.0,8.219e-05,2]
[355675229,1741452641772,-500.0,8.219e-05,2]
[355675231,1741452641782,-510.78,8.219e-05,2]
[355675233,1741452641791,-594.34,8.219e-05,2]
[355675235,1741452641800,-1584.66,8.219e-05,2]
[355675237,1741452641809,-1000.88,8.219e-05,2]
[355675239,1741452641818,-1910.17,8.219e-05,2]
[355675241,1741452641828,-2164.63,8.219e-05,2]
[355675243,1741452641837,-500.0,8.219e-05,2]
[355675245,1741452641847,-593.73099913,8.219e-05,2]
[355675247,1741452641857,-895.76,8.219e-05,2]
[355675249,1741452641866,-4457.98,8.219e-05,2]
[355675251,1741452641875,-500.0,8.219e-05,2]
[355675253,1741452641885,-562.29,8.219e-05,2]
[355675255,1741452641894,-500.0,8.219e-05,2]
[355675257,1741452641903,-500.0,8.219e-05,2]
[355675259,1741452641913,-1388.1,8.219e-05,2]
[355675261,1741452641922,-500.0,8.219e-05,2]
[355675263,1741452641931,-507.13,8.219e-05,2]
[355675265,1741452641940,-1070.16,8.219e-05,2]
[355675267,1741452641950,-500.0,8.219e-05,2]
[355675269,1741452641959,-1021.66,8.219e-05,2]
[355675271,1741452641968,-1375.91,8.219e-05,2]
[355675273,1741452641978,-500.0,8.219e-05,2]
[355675275,1741452641987,-2592.63,8.219e-05,2]
[355675277,1741452641997,-500.0,8.219e-05,2]
[355675279,1741452642006,-3571.5,8.219e-05,2]
[355675281,1741452642015,-667.45,8.219e-05,2]
[355675282,1741452642024,-500.0,8.219e-05,2]
[355675283,1741452642034,-500.0,8.219e-05,2]
[355675284,1741452642043,-500.0,8.219e-05,2]
[355675285,1741452642053,-500.0,8.219e-05,2]
[355675286,1741452642066,-13981.56,8.219e-05,2]
[355675287,1741452642075,-969.86,8.219e-05,2]
[355675288,1741452642085,-500.0,8.219e-05,2]
[355675289,1741452642095,-993.45,8.219e-05,2]
[355675291,1741452642106,-500.0,8.219e-05,2]
[355675292,1741452642115,-1510.52,8.219e-05,2]
[355675294,1741452642124,-500.0,8.219e-05,2]
[355675296,1741452642134,-3536.56,8.219e-05,2]
[355675298,1741452642145,-500.0,8.219e-05,2]
[355675300,1741452642155,-500.0,8.219e-05,2]
[355675302,1741452642164,-500.0,8.219e-05,2]
[355675304,1741452642174,-790.98,8.219e-05,2]
[355675306,1741452642183,-6696.4,8.219e-05,2]
[355675308,1741452642193,-500.0,8.219e-05,2]
[355675310,1741452642202,-500.0,8.219e-05,2]
[355675312,1741452642211,-500.0,8.219e-05,2]
[355675314,1741452642220,-1710.7,8.219e-05,2]
[355675316,1741452642229,-1445.03,8.219e-05,2]
[355675318,1741452642239,-1727.06,8.219e-05,2]
[355675320,1741452642248,-1000.0,8.219e-05,2]
[355675322,1741452642257,-250.0,8.219e-05,2]
[355675324,1741452642267,-267.64156925,8.313e-05,2]
[355675326,1741452642276,-267.64156925,8.406e-05,2]
[355675329,1741452642286,-278.575238,8.493e-05,2]
[355675331,1741452642295,-414.87639,8.493e-05,2]
[355675333,1741452642305,-500.0,8.493e-05,2]
[355675335,1741452642315,-500.0,8.493e-05,2]
[355675338,1741452642325,-500.0,8.493e-05,2]
[355675340,1741452642335,-500.0,8.493e-05,2]
[355675342,1741452642344,-282.27,8.493e-05,2]
[355675345,1741452642363,-500.0,8.493e-05,2]
[355675347,1741452642373,-500.0,8.493e-05,2]
[355675349,1741452642383,-500.0,8.493e-05,2]
[355675351,1741452642393,-500.0,8.493e-05,2]
[355675353,1741452642403,-500.0,8.493e-05,2]
[355675355,1741452642412,-500.0,8.493e-05,2]
[355675357,1741452642423,-500.0,8.493e-05,2]
[355675359,1741452642432,-500.0,8.493e-05,2]
[355675363,1741452642442,-500.0,8.493e-05,2]
[355675366,1741452642453,-500.0,8.493e-05,2]
[355675369,1741452642463,-500.0,8.493e-05,2]
[355675371,1741452642473,-500.0,8.493e-05,2]
[355675373,1741452642483,-500.0,8.493e-05,2]
[355675375,1741452642493,-500.0,8.493e-05,2]
[355675377,1741452642503,-500.0,8.493e-05,2]
[355675379,1741452642513,-391.49274782,8.493e-05,2]
[355675381,1741452642524,-500.0,8.493e-05,2]
[355675383,1741452642535,-500.0,8.493e-05,2]
[355675385,1741452642546,-500.0,8.493e-05,2]
[355675387,1741452642556,-500.0,8.493e-05,2]
[355675389,1741452642566,-544.32,8.493e-05,2]
[355675391,1741452642576,-500.0,8.493e-05,2]
[355675394,1741452642586,-500.0,8.493e-05,2]
[355675396,1741452642595,-500.0,8.493e-05,2]
[355675398,1741452642605,-500.0,8.493e-05,2]
[355675400,1741452642615,-500.0,8.493e-05,2]
[355675402,1741452642624,-500.0,8.493e-05,2]
[355675404,1741452642634,-500.0,8.493e-05,2]
[355675406,1741452642643,-500.0,8.493e-05,2]
[355675408,1741452642652,-500.0,8.493e-05,2]
[355675410,1741452642662,-500.0,8.493e-05,2]
[355675412,1741452642671,-500.0,8.493e-05,2]
[355675414,1741452642681,-500.0,8.493e-05,2]
[355675416,1741452642691,-500.0,8.493e-05,2]
[355675418,1741452642700,-500.0,8.493e-05,2]
[355675420,1741452642709,-500.0,8.493e-05,2]
[355675422,1741452642719,-500.0,8.493e-05,2]
[355675424,1741452642729,-500.0,8.493e-05,2]
[355675426,1741452642739,-500.0,8.493e-05,2]
[355675428,1741452642748,-500.0,8.493e-05,2]
[355675430,1741452642758,-500.0,8.493e-05,2]
[355675432,1741452642767,-500.0,8.493e-05,2]
[355675434,1741452642777,-500.0,8.493e-05,2]
[355675436,1741452642786,-500.0,8.493e-05,2]
[355675438,1741452642796,-500.0,8.493e-05,2]
[355675440,1741452642806,-500.0,8.493e-05,2]
[355675442,1741452642815,-500.0,8.493e-05,2]
[355675444,1741452642824,-500.0,8.493e-05,2]
[355675446,1741452642834,-500.0,8.493e-05,2]
[355675448,1741452642843,-500.0,8.493e-05,2]
[355675450,1741452642853,-500.0,8.493e-05,2]
[355675452,1741452642863,-572.01,8.493e-05,2]
[355675454,1741452642872,-500.0,8.493e-05,2]
[355675456,1741452642882,-653.42,8.493e-05,2]
[355675458,1741452642891,-500.0,8.493e-05,2]
[355675460,1741452642901,-500.0,8.493e-05,2]
[355675462,1741452642910,-500.0,8.493e-05,2]
[355675464,1741452642919,-500.0,8.493e-05,2]
[355675466,1741452642929,-525.98,8.493e-05,2]
[355675468,1741452642939,-579.96,8.493e-05,2]
[355675470,1741452642949,-500.0,8.493e-05,2]
[355675472,1741452642957,-251.48901891,8.493e-05,2]
[355675474,1741452642966,-525.57,8.493e-05,2]
[355675476,1741452642974,-500.0,8.493e-05,2]
[355675478,1741452642983,-709.73,8.493e-05,2]
[355675480,1741452642992,-500.0,8.493e-05,2]
[355675483,1741452643002,-500.0,8.493e-05,2]
[355675485,1741452643011,-500.0,8.493e-05,2]
[355675487,1741452643021,-591.01,8.493e-05,2]
[355675489,1741452643030,-411.85945252,8.493e-05,2]
[355675491,1741452643041,-500.0,8.493e-05,2]
[355675493,1741452643050,-743.6,8.493e-05,2]
[355675495,1741452643060,-500.0,8.493e-05,2]
[355675497,1741452643071,-500.0,8.493e-05,2]
[355675499,1741452643081,-500.0,8.493e-05,2]
[355675501,1741452643090,-500.0,8.493e-05,2]
[355675503,1741452643100,-609.03,8.493e-05,2]
[355675505,1741452643110,-612.62,8.493e-05,2]
[355675507,1741452643120,-500.0,8.493e-05,2]
[355675509,1741452643129,-500.0,8.493e-05,2]
[355675511,1741452643141,-500.0,8.493e-05,2]
[355675513,1741452643151,-500.0,8.493e-05,2]
[355675515,1741452643161,-500.0,8.493e-05,2]
[355675517,1741452643171,-609.32,8.493e-05,2]
[355675519,1741452643183,-851.29,8.493e-05,2]
[355675521,1741452643192,-500.0,8.493e-05,2]
[355675523,1741452643202,-1077.93,8.493e-05,2]
[355675525,1741452643211,-691.53,8.493e-05,2]
[355675526,1741452643220,-708.66,8.493e-05,2]
[355675527,1741452643229,-500.0,8.493e-05,2]
[355675529,1741452643239,-500.0,8.493e-05,2]
[355675530,1741452643247,-500.0,8.493e-05,2]
[355675531,1741452643257,-500.0,8.493e-05,2]
[355675532,1741452643266,-859.23,8.493e-05,2]
[355675533,1741452643276,-500.0,8.493e-05,2]
[355675535,1741452643285,-500.0,8.493e-05,2]
[355675537,1741452643294,-500.0,8.493e-05,2]
[355675538,1741452643303,-500.0,8.493e-05,2]
[355675540,1741452643313,-500.0,8.493e-05,2]
[355675542,1741452643323,-688.72,8.493e-05,2]
[355675543,1741452643332,-500.0,8.493e-05,2]
[355675544,1741452643342,-844.82,8.493e-05,2]